Cogmind - Beta 12 @@@ ROGUE MODE // 2023.08.09 @ 19:23:34 // Winter2022/Polymind Player: Kersh Result: Destroyed by Y-45 Defender with Beam Rifle Performance ------------- Evolutions (1) 500 Regions Visited (4) 800 Robots Destroyed (41) 205 Value Destroyed (1168) 1168 Prototype IDs (0) 0 Alien Tech Used (0) 0 Bonus (2999) 2999 TOTAL SCORE: 4892 Bonus ------- Polymind Skill 2719 Pacifist 200 High Alert Combat Kills 80 Cogmind --------- Core Integrity 0/400 Matter 0/0 Energy 9/100 System Corruption 0% Temperature Cool (27) Movement Core (50) Location -9/Storage Parts ------- > --- POWER (1) -------- (None) > --- PROPULSION (2) --- (None) > --- UTILITY (1) ------ (None) > --- WEAPON (0) ------- (None) > --- INVENTORY (0) ---- (None) Peak State ------------ > --- POWER ------------ Improved Ion Engine > --- PROPULSION ------- Light Treads Light Treads > --- UTILITY ---------- Heat Sink Heat Sink Light Armor Plating > --- WEAPON ----------- Beam Rifle Heavy Assault Rifle > --- INVENTORY -------- (None) [Rating: 11] Favorites ----------- Power Improved Ion Engine Engine Improved Ion Engine Power Core Light Nuclear Core Propulsion Light Treads Treads Light Treads Leg Aluminum Leg Wheel Wheel Hover Unit Hover Unit Flight Unit Flight Unit Utility Heat Sink Device Heat Sink Storage Medium Matter Pod Hackware Hacking Suite Protection Light Armor Plating Weapon Beam Rifle Energy Gun Beam Rifle Ballistic Gun Heavy Assault Rifle Special Melee Weapon Datajack Build | -11 -10 -10 -9 -9 ------- Run | Jun Mat Min Mat Sto Slots Evolved . | . . . . . Power . | . . . . . Propulsion . | . . . . . Utility . | . . . . . Weapon . | . . . . . Parts Attached . | . . . . . Power . | . . . . . Engine . | . . . . . Core . | . . . . . Reactor . | . . . . . Propulsion . | . . . . . Treads . | . . . . . Leg . | . . . . . Wheel . | . . . . . Hover . | . . . . . Flight . | . . . . . Utility . | . . . . . Device . | . . . . . Storage . | . . . . . Processor . | . . . . . Hackware . | . . . . . Protection . | . . . . . Artifact . | . . . . . Weapon . | . . . . . Energy Gun . | . . . . . Energy Cannon . | . . . . . Ballistic Gun . | . . . . . Ballistic Cannon . | . . . . . Launcher . | . . . . . Special Weapon . | . . . . . Impact Weapon . | . . . . . Slashing Weapon . | . . . . . Piercing Weapon . | . . . . . Special Melee Weapon . | . . . . . Unidentified Prototypes . | . . . . . Parts Lost 9 | . . . 4 5 Power 3 | . . . 2 1 Propulsion 1 | . . . . 1 Utility 3 | . . . 1 2 Weapon 2 | . . . 1 1 Highest Loss Streak 2 | . . . 2 2 To Critical Strikes . | . . . . . Average Slot Usage (%) 94 | . 94 100 94 93 Engine 12 | . 21 25 8 12 Core 1 | . . . 3 . Treads 15 | . . . 17 17 Leg 6 | . . . 12 4 Wheel 6 | . 26 50 . 3 Hover 1 | . 16 . . . Flight 1 | . . . . 3 Device 17 | . . . 23 18 Storage 3 | . 13 25 . 1 Protection 6 | . . . 6 8 Energy Gun 10 | . . . 14 10 Ballistic Gun 8 | . . . 8 10 Naked Turns 29 | . 8 1 3 17 Heaviest Build 18 | . 5 9 18 18 Greatest Support 40 | 3 20 20 40 40 Greatest Overweight (x) . | . . . . . Average Overweight (x) . | . . . . . Largest Inventory Capacity 1 | . 1 1 1 1 Average Capacity . | . . . . . Most Carried . | . . . . . Average Carried . | . . . . . Final Capacity 1 | . 1 1 1 . Final Carried . | . . . . . Class Distribution -------------------- 63% | Sentry 15% | Grunt 13% | Worker 4% | Swarmer Dominant Class ---------------- Worker | -10/Materials Worker | -10/Mines Sentry | -9/Materials Sentry | -9/Storage Resources | -11 -10 -10 -9 -9 ----------- Run | Jun Mat Min Mat Sto Matter Collected 248 | . . 28 112 108 Remotely . | . . . . . Salvage Created 1055 | . . . 730 325 Parts 84 | . . . 50 34 Haulers Intercepted . | . . . . . Recyclers Shooed 1 | . . . 1 . Parts Field Recycled . | . . . . . Retrieved Matter . | . . . . . Parts Self-Destructed . | . . . . . Prevented . | . . . . . Kills | -11 -10 -10 -9 -9 ------- Run | Jun Mat Min Mat Sto Combat Hostiles Destroyed 36 | . . . 22 14 Guns 36 | . . . 22 14 Classes Destroyed 7 | . . . 6 1 Recycler 1 | . . . 1 . Operator 1 | . . . . 1 Watcher 3 | . . . 2 1 Swarmer 11 | . . . 7 4 Grunt 12 | . . . 8 4 Brawler 2 | . . . 2 . Sentry 11 | . . . 5 6 Best Kill Streak 6 | . . . 6 5 Combat Bots Only 5 | . . . 5 5 Max Kills in Single Turn 2 | . . . 2 1 Gunslinging 1 | . . . 1 . Exploded . | . . . . . Melee . | . . . . . Uniques/NPCs Destroyed . | . . . . . Combat | -11 -10 -10 -9 -9 -------- Run | Jun Mat Min Mat Sto Damage Taken 2151 | . . 15 1254 882 Core 421 | . . 15 239 167 Absorbed by Shields . | . . . . . Core Remaining (%) 97 | 100 . 94 . . Volleys Fired 137 | . . . 90 47 Largest 2 | . . . 2 2 Hottest 79 | . . . 79 79 Shots Fired 219 | . . . 140 79 Gun 219 | . . . 140 79 Cannon . | . . . . . Launcher . | . . . . . Special . | . . . . . Kinetic 82 | . . . 50 32 Thermal 137 | . . . 90 47 Explosive . | . . . . . Electromagnetic . | . . . . . Robot Hit Streak 18 | . . . 18 17 Robot Miss Streak 4 | . . . 4 3 Penetration Max . | . . . . . Secondary Targets 4 | . . . 4 . Max Gunslinging Chain 1 | . . . 1 . Shots Hit Robots 159 | . 3 . 100 56 Core Hits 64 | . . . 38 26 Critical Kills . | . . . . . Critical Parts Destroyed . | . . . . . Critical Strikes 7 | . . . 3 4 Burn 7 | . . . 3 4 Melee Attacks 3 | . 3 . . . Impact . | . . . . . Slashing . | . . . . . Piercing . | . . . . . Sneak Attacks 3 | . 3 . . . Combat Hostiles . | . . . . . Follow-up Attacks . | . . . . . Damage Inflicted 2455 | . . . 1592 863 Guns 2455 | . . . 1592 863 Cannons . | . . . . . Explosions . | . . . . . Melee . | . . . . . Ramming . | . . . . . Kinetic 860 | . . . 519 341 Thermal 1595 | . . . 1073 522 Explosive . | . . . . . Electromagnetic . | . . . . . Impact . | . . . . . Slashing . | . . . . . Piercing . | . . . . . Highest Corruption . | . . . . . Average Corruption . | . . . . . Corruption Purged . | . . . . . Corruption Blocked . | . . . . . Overload Shots . | . . . . . Overflow Damage . | . . . . . Projectiles . | . . . . . Explosions . | . . . . . Melee . | . . . . . Knockbacks . | . . . . . Impact . | . . . . . Kinetic . | . . . . . Secondary . | . . . . . Self-Inflicted Damage . | . . . . . Shots . | . . . . . Rammed . | . . . . . Targets Rammed . | . . . . . Kicked . | . . . . . Crushed . | . . . . . Highest Temperature 189 | . . . 76 189 Average Temperature 38 | . . . 18 54 Received Heat Transfer 828 | . . 9 492 327 Siege Activations . | . . . . . Robots Corrupted . | . . . . . Combat Hostiles . | . . . . . Parts Fried . | . . . . . Impact Corruptions . | . . . . . Robots Melted . | . . . . . Combat Hostiles . | . . . . . Parts Melted 7 | . . . 5 2 Heat Transferred 4368 | . . . 2812 1556 Parts Sabotaged . | . . . . . Parts Stolen . | . . . . . Parts Stripped . | . . . . . Power Chain Reactions . | . . . . . Missiles Intercepted . | . . . . . Alert | -11 -10 -10 -9 -9 ------- Run | Jun Mat Min Mat Sto Peak Influence 609 | . 64 30 512 609 Initial 152 | . . 30 11 152 Average 282 | . 19 30 271 347 Maximum Alert Level 2 | . . . 2 2 Low Security (%) 35 | 100 100 100 40 18 Level 1 36 | . . . 31 47 Level 2 27 | . . . 27 33 Level 3 . | . . . . . Level 4 . | . . . . . Level 5 . | . . . . . High Security . | . . . . . Max Security . | . . . . . Squads Dispatched 3 | . . . 2 1 Investigation 1 | . . . . 1 Extermination . | . . . . . Reinforcement 2 | . . . 2 . Assault . | . . . . . Garrison . | . . . . . Intercept . | . . . . . Searches Triggered 1 | . . . . 1 Construction Impeded . | . . . . . Haulers Reinforced . | . . . . . Active Scanning Responses . | . . . . . Cargo Convoy Interrupts . | . . . . . Stealth | -11 -10 -10 -9 -9 --------- Run | Jun Mat Min Mat Sto Distress Signals 5 | . . . 3 2 Communications Jammed . | . . . . . Distress Signals . | . . . . . Times Spotted 84 | . 1 2 36 45 Peak Tracking Total 6 | . 1 2 5 6 Tactical Retreats 7 | . . . 2 5 Traps | -11 -10 -10 -9 -9 ------- Run | Jun Mat Min Mat Sto Traps Triggered 1 | . . . . 1 Indirectly . | . . . . . Trap Hack Attempts . | . . . . . Triggered . | . . . . . Disarmed . | . . . . . Reprogrammed . | . . . . . Reused . | . . . . . Traps Extracted . | . . . . . Installed . | . . . . . Triggered . | . . . . . Machines | -11 -10 -10 -9 -9 ---------- Run | Jun Mat Min Mat Sto Machines Disabled . | . . . . . Max in Single Turn . | . . . . . Machines Repaired . | . . . . . Machines Sabotaged . | . . . . . Overloaded Fab Kills . | . . . . . Hacking | -11 -10 -10 -9 -9 --------- Run | Jun Mat Min Mat Sto Machines Accessed 11 | . 4 1 . 6 Terminals 10 | . 4 . . 6 Fabricators . | . . . . . Repair Stations . | . . . . . Recycling Units . | . . . . . Scanalyzers . | . . . . . Garrison Access . | . . . . . Total Hacks 22 | . 8 1 . 13 Successful 6 | . 2 1 . 3 Failed 16 | . 6 . . 10 Catastrophic 4 | . 2 . . 2 Database Lockouts . | . . . . . Manual 9 | . 7 . . 2 Terminals 21 | . 8 . . 13 Fabricators . | . . . . . Repair Stations . | . . . . . Recycling Units . | . . . . . Scanalyzers . | . . . . . Garrison Access . | . . . . . Terminal Hacks 6 | . 2 1 . 3 Open Door 4 | . . 1 . 3 Dispatch Records 1 | . 1 . . . Surveillance Status 1 | . 1 . . . Fabricator Hacks . | . . . . . Repair Station Hacks . | . . . . . Recycling Unit Hacks . | . . . . . Scanalyzer . | . . . . . Garrison Access Hacks . | . . . . . Unauthorized Hacks . | . . . . . Terminals . | . . . . . Fabricators . | . . . . . Repair Stations . | . . . . . Recycling Units . | . . . . . Scanalyzers . | . . . . . Garrison Access . | . . . . . Data Cores Recovered 1 | . . . . 1 Used . | . . . . . Hacking Detections 7 | . 3 . . 4 Full Trace Events 1 | . . . . 1 Feedback Events . | . . . . . Feedback Blocked . | . . . . . Robot Schematics Acquired . | . . . . . Robots Built . | . . . . . Authchips . | . . . . . Time . | . . . . . Total Robot Build Rating . | . . . . . Part Schematics Acquired . | . . . . . Parts Built . | . . . . . Authchips . | . . . . . Time . | . . . . . Total Part Build Rating . | . . . . . Parts Repaired . | . . . . . Time . | . . . . . Parts Recycled . | . . . . . Recycled Matter . | . . . . . Retrieved Matter . | . . . . . Retrieved Components . | . . . . . Parts Scanalyzed . | . . . . . Part Schematics Acquired . | . . . . . Parts Damaged . | . . . . . Bothacking | -11 -10 -10 -9 -9 ------------ Run | Jun Mat Min Mat Sto Used RIF Installer . | . . . . . Robots Hacked 8 | . 1 1 2 4 Non-combat 1 | . 1 . . . Combat 7 | . . 1 2 4 Robot Hacks Applied 12 | . 1 1 2 8 find_terminals 1 | . 1 . . . find_shortcuts 7 | . . 1 2 4 find_garrison 4 | . . . . 4 Relay Couplers Released . | . . . . . Fabnet Peak Effective % . | . . . . . Robots Rewired . | . . . . . Allies Hacked . | . . . . . Hacks Repelled . | . . . . . Allies | -11 -10 -10 -9 -9 -------- Run | Jun Mat Min Mat Sto Total Allies . | . . . . . Largest Group . | . . . . . Highest-Rated Group . | . . . . . Highest-Rated Ally . | . . . . . Total Orders . | . . . . . Ally Attacks . | . . . . . Total Damage . | . . . . . Kills . | . . . . . Allies Corrupted . | . . . . . Allies Melted . | . . . . . Intel | -11 -10 -10 -9 -9 ------- Run | Jun Mat Min Mat Sto Robot Analysis Total 6 | . 2 1 1 2 Derelict Logs Recovered 1 | . . 1 . . Drone Launches . | . . . . . Drone Recoveries . | . . . . . Exploration | -11 -10 -10 -9 -9 ------------- Run | Jun Mat Min Mat Sto Turns Passed 2545 | 9 176 131 822 1407 Spaces Moved 1500 | 18 251 150 397 684 Core 54 | 18 9 2 7 18 Treads 432 | . . . 239 193 Legs 247 | . . 1 151 95 Wheels 386 | . 120 147 . 119 Hover 122 | . 122 . . . Flight 259 | . . . . 259 Fastest Speed 37 | 50 50 50 50 37 Average Speed 99 | 50 67 79 142 91 Slowest Speed 160 | 50 80 120 160 160 Overloaded Moves . | . . . . . Propulsion Burnouts . | . . . . . Robots Hopped 1 | . . . . 1 Cave-ins Triggered . | . . . . . Exploration Rate (%) 41 | 3 37 48 39 78 Regions Visited 4 Branch Regions 2 Pre-discovered Areas . | . . . . . Known Exits Taken . | . . . . . Unknown Exits Taken 4 | 1 1 1 1 . Scrap Searched 1 | . . 1 . . Spaces Dug . | . . . . . Terrain Destroyed . | . . . . . Melee . | . . . . . Projectile . | . . . . . AOE . | . . . . . Terrain Rammed . | . . . . . Walls Destroyed . | . . . . . Machines Disabled . | . . . . . Actions | -11 -10 -10 -9 -9 --------- Run | Jun Mat Min Mat Sto Total 2334 | 17 256 161 512 1388 Wait 697 | . 3 12 26 656 Move 1494 | 17 250 149 396 682 Hop 1 | . . . . 1 Pick Up . | . . . . . Fast Attach . | . . . . . Attach . | . . . . . Detach . | . . . . . Swap . | . . . . . Drop . | . . . . . Fire 137 | . . . 90 47 Melee 3 | . 3 . . . Ram . | . . . . . Kick . | . . . . . Crush . | . . . . . Escape Stasis . | . . . . . Rewire 2 | . . . . 2 Trap . | . . . . . Miscellaneous . | . . . . . Route ------- -11/Junkyard -10/Materials -10/Mines -9/Materials (discovered 2 exits: [*Min] / *Sto) -9/Storage History --------- Turn | Location | Event 3 | -11/Junkyard | Discovered new exit (range 15) 10 | -11/Junkyard | Entered Materials 177 | -10/Materials | Discovered new exit (range 11) 186 | -10/Materials | Entered Mines 245 | -10/Mines | Learned Materials terminal intel 277 | -10/Mines | Found the Drone Emporium 313 | -10/Mines | Discovered new exit (range 5) 317 | -10/Mines | Entered Materials 318 | -9/Materials | Loaded intel: 12 terminal locations 377 | -9/Materials | Discovered new exit (range 12) 940 | -9/Materials | Core integrity fell below 50% 1077 | -9/Materials | Discovered new exit (range 12) 1139 | -9/Materials | Entered Storage 1534 | -9/Storage | Core integrity fell below 20% 1939 | -9/Storage | Search patrols dispatched 2546 | -9/Storage | Destroyed by Y-45 Defender with Beam Rifle Last Messages --------------- 01985_ R-06 Scavenger collects Signal Interpreter. 01985_ K-01 Serf cleans the Compression Vault. 01989_ R-06 Scavenger collects Visual Processing Unit. 01991_ K-01 Serf cleans the Compression Vault. 02456_ Released control of Y-45 Defender. 02456_ Took control of K-01 Serf. 02456_ Cleaned Compression Vault. 02457_ Y-45 Defender reactivates. 02460_ Cleaned Compression Vault. 02471_ K-01 Serf cleans the Compression Vault. 02472_ Cleaned Compression Vault. 02474_ K-01 Serf cleans the Compression Vault. 02478_ Connecting with Terminal... 02497_ Cleaned Terminal. 02542_ Cleaned Compression Vault. 02545_ Connecting with Terminal... 02545_ Cleaned Terminal. 02546_ Cleaned Compression Vault. 02546_ Released control of K-01 Serf. 02546_ Critical hit (Burn: +37). Map ----- +----------------------------------------------------+ | ## #??# # ##%""" + # ## | | #" """ #??# # ## """ # # """ """ """ + | | #T """ #### # ## % # # """ """ """ ## | | #" """ + ########## """ # # """ """ """ ## | | ## #### ## # """ # ################ | | ## """ #??# ## # """ # #??????????????# | | ## """ #??# ## """ # % # #??????????????# | | ### """ #??#=## """ # # #??????????????# | | ??# #### ## """ # # #??????????????# | | #######+#### [=# # % # #?????????????? | | # """ !#### ## #?????????????? | | + """ #??#### #?????????????+ | | # """ #?????# #?????????????# | | +##T###+#### # #?????# #?????????????# | | ###T #?####### #?????# #?????????????## | | " #### ##?????######/########## ###????????????? | | " ##??! !#?????# #????????????? | | " #???! !#?????# #????????????? | | #??#! !#?????# ^ #????????????? | | " #??#! !#?????######+########### #????????????? | | " #??#####???????# g #?????# #????????????? | | " #??????????????# """ #?????# #????????????? | | #??????????????# """ #?????# ###########??? | | ###??????????????# """ ###???# # #??? | | ?????????????????# k ""#???# # #??? | | ?????????????????# """@T"#???# # #??? | | ?????????????????# """ ""#???# # [ #??? | | ?????????????????# """Y###???# + [#??? | | ?????????????????# #?????# # #??? | | ?????????????????###### ###?????##### #??? | | ??????????????????????##????????????# ! #??? | | ????????????????????????????????????#####+#####??? | | ???????????????????????????????????????# ?????? | | #??????????????????????????????????????# """"???? | | #??????????????????????????????????????# """" ?? | | ##### #????????????????????????????????# """" + | | #????????????????????????????????# """" # | | #????????????????????????????????# ????# | | #????????????????????????????????# ?????? | | " """ #????????????????????????????????# ?????? | | " """ #????????????????????????????????# ##??????? | | " """??????????????????????????????????##????????? | | #####????????????????????????????????????????????? | | ?????????????????????????????????????????????????? | | ?????????????????????????????????????????????????? | | ?????????????????????????????????????????????????? | | ?????????????????????????????????????????????????? | | ?????????????????????????????????????????????????? | | ?????????????????????????????????????????????????? | | ?????????????????????????????????????????????????? | +----------------------------------------------------+ Best States ------------- Heat Dissipation 43 Energy Generation 19 Energy Capacity 215 Matter Stores 100 Matter Capacity 100 Sight Range 16 Terrain Scan Density 10 Armor Coverage 150 Resistance: EX 50 Resistance: I 25 Evasion (%) 62 Recoil Reduction 2 Offensive Hacking 10 Item Schematics ----------------- None Robot Schematics ------------------ None Fabricated ------------ Nothing Alien Tech Used ----------------- None Achievements -------------- None Challenges ------------ None Polymind | -11 -10 -10 -9 -9 ---------- Run | Jun Mat Min Mat Sto Hosts 11 | . 2 1 2 6 Combat Hostiles 7 | . . 1 2 4 Allies . | . . . . . Unique Host Classes 5 | . 2 1 1 1 Average Host Suspicion 77 | . 56 5 97 75 Unsuspicious Activity 767 | . 77 60 . 630 Returns to Shadow 1 | . . . . 1 Fuzzy Dispatches . | . . . . . Protomatter Created 230 | . . . 128 102 Used 163 | . 10 30 46 77 Decayed . | . . . . . Highest Spend 30 | . 5 30 23 23 Top 5 Hosts by Kills: Y-45 Defender (-9/Materials: 15) Y-45 Defender (-9/Materials: 11) G-47 Trooper (-10/Mines: 5) Y-45 Defender (-9/Storage: 4) G-34 Mercenary (-9/Storage: 1) Game ------ Seed ResetFactoryProcessor Manual? 0 Play Time 00:22:31 Cumulative 53.3 hours Start 2023.08.09 @ 19:02:30 End 2023.08.09 @ 19:23:34 Sessions 1 Manual Loads 0 Difficulty Rogue Special Mode Winter2022/Polymind Game No. 57 Rogue 54 Adventurer 1 Explorer 2 Win Type - Total 1 Types 1/0/0/0/0/0/0/0/0 Lore% 43 Gallery% 45 Achievement% 38 Wizard Run 0 Options --------- ASCII 0 Keyboard 0 Movement Numpad Keybinds 0 Fullscreen 2 Font 18/Terminus Map View 76x50 Tactical HUD 1 Map Filters NONE Filters NONE Steam 1 RUN: 35829a69-59ed-44ae-b87c-0f93537da39e